[Event "*** Titled Tuesday Blitz"]
[Site "Chess.com"]
[Date "2021.03.30"]
[Round "5"]
[White "chessdiamant"]
[Black "FMJoseHerrera"]
[Result "1-0"]
[WhiteElo "2373"]
[BlackElo "2528"]
[TimeControl "180+1"]
[EndTime "10:55:40 PDT"]
[Termination "chessdiamant won on time"]

1. e4 {[%clk 0:03:00.7]} 1... c5 {[%clk 0:02:58.4]} 2. Nf3 {[%clk 0:03:00.1]}
2... e6 {[%clk 0:02:57.7]} 3. d4 {[%clk 0:02:59.6]} 3... cxd4 {[%clk 0:02:58.6]}
4. Nxd4 {[%clk 0:03:00.5]} 4... a6 {[%clk 0:02:59.1]} 5. c4 {[%clk 0:03:00]}
5... Qc7 {[%clk 0:02:59.2]} 6. Nc3 {[%clk 0:02:59.2]} 6... b6 {[%clk 0:02:59.7]}
7. Be3 {[%clk 0:02:57.9]} 7... Bb7 {[%clk 0:03:00]} 8. Be2 {[%clk 0:02:57.5]}
8... Nf6 {[%clk 0:03:00.2]} 9. f3 {[%clk 0:02:55.4]} 9... d6 {[%clk 0:03:00.3]}
10. O-O {[%clk 0:02:55]} 10... Nbd7 {[%clk 0:02:59.5]} 11. Qd2 {[%clk 0:02:52]}
11... Be7 {[%clk 0:02:58.8]} 12. b4 {[%clk 0:02:51.2]} 12... h5 {[%clk
0:02:57.9]} 13. a3 {[%clk 0:02:48.2]} 13... h4 {[%clk 0:02:56.4]} 14. Rfe1
{[%clk 0:02:48.3]} 14... h3 {[%clk 0:02:55.9]} 15. g3 {[%clk 0:02:48.5]} 15...
Rc8 {[%clk 0:02:52.2]} 16. Rad1 {[%clk 0:02:46.8]} 16... Qb8 {[%clk 0:02:51.6]}
17. Bf1 {[%clk 0:02:39.2]} 17... Ne5 {[%clk 0:02:33.3]} 18. Qa2 {[%clk
0:01:54.4]} 18... b5 {[%clk 0:02:29.6]} 19. cxb5 {[%clk 0:01:51.5]} 19... Rxc3
{[%clk 0:02:28.8]} 20. bxa6 {[%clk 0:01:51.6]} 20... Ba8 {[%clk 0:02:25.5]} 21.
Nb5 {[%clk 0:01:49.4]} 21... Nxf3+ {[%clk 0:02:22.7]} 22. Kh1 {[%clk 0:01:36.2]}
22... Rc8 {[%clk 0:01:59.3]} 23. Ba7 {[%clk 0:01:28.4]} 23... Nxe4 {[%clk
0:01:45.9]} 24. Rxe4 {[%clk 0:01:04.2]} 24... Bxe4 {[%clk 0:01:44.7]} 25. Bxb8
{[%clk 0:01:04.4]} 25... Rc2 {[%clk 0:01:32.7]} 26. Qxc2 {[%clk 0:00:44.9]}
26... Bxc2 {[%clk 0:01:33.6]} 27. a7 {[%clk 0:00:37.8]} 27... Be4 {[%clk
0:01:30.8]} 28. Nc7+ {[%clk 0:00:36.6]} 28... Kd7 {[%clk 0:01:26.6]} 29. Bb5+
{[%clk 0:00:26.5]} 29... Kc8 {[%clk 0:01:19.9]} 30. Nd5 {[%clk 0:00:17.9]} 30...
Nd4+ {[%clk 0:00:18.3]} 31. Kg1 {[%clk 0:00:17.7]} 31... Bxd5 {[%clk 0:00:18.7]}
32. Rxd4 {[%clk 0:00:15.2]} 32... Bb7 {[%clk 0:00:17.5]} 33. Rc4+ {[%clk
0:00:14.7]} 33... Kd8 {[%clk 0:00:17.8]} 34. Bc6 {[%clk 0:00:12.1]} 34... Kc8
{[%clk 0:00:16.6]} 35. Bd5+ {[%clk 0:00:09.8]} 1-0

[Event "*** Titled Tuesday Blitz"]
[Site "Chess.com"]
[Date "2021.03.30"]
[Round "5"]
[White "LenkaPtacnikova"]
[Black "Agoking701"]
[Result "0-1"]
[WhiteElo "2170"]
[BlackElo "2321"]
[TimeControl "180+1"]
[EndTime "10:55:40 PDT"]
[Termination "Agoking701 won on time"]

1. Nf3 {[%clk 0:03:00.9]} 1... g6 {[%clk 0:02:56]} 2. g3 {[%clk 0:03:00.7]} 2...
Bg7 {[%clk 0:02:56.9]} 3. Bg2 {[%clk 0:03:00.8]} 3... Nf6 {[%clk 0:02:54.3]} 4.
O-O {[%clk 0:03:00.6]} 4... O-O {[%clk 0:02:55.2]} 5. c4 {[%clk 0:02:58.2]} 5...
c6 {[%clk 0:02:51.2]} 6. d4 {[%clk 0:02:52.6]} 6... d5 {[%clk 0:02:50]} 7. cxd5
{[%clk 0:02:52.8]} 7... cxd5 {[%clk 0:02:50.9]} 8. Ne5 {[%clk 0:02:52.3]} 8...
Ne4 {[%clk 0:02:44.1]} 9. Qb3 {[%clk 0:02:33.8]} 9... Nc6 {[%clk 0:02:40.9]} 10.
Nxc6 {[%clk 0:02:30.4]} 10... bxc6 {[%clk 0:02:41.8]} 11. Nc3 {[%clk 0:02:29.4]}
11... Nxc3 {[%clk 0:02:39.8]} 12. bxc3 {[%clk 0:02:06.7]} 12... Ba6 {[%clk
0:02:39]} 13. Qc2 {[%clk 0:01:58.9]} 13... Rb8 {[%clk 0:02:36]} 14. Ba3 {[%clk
0:01:57.7]} 14... Qa5 {[%clk 0:02:31.1]} 15. Bxe7 {[%clk 0:01:25]} 15... Rfe8
{[%clk 0:02:23.9]} 16. Bb4 {[%clk 0:01:24]} 16... Qc7 {[%clk 0:01:46.1]} 17.
Rfe1 {[%clk 0:01:04.2]} 17... Bxd4 {[%clk 0:01:41.6]} 18. cxd4 {[%clk
0:01:02.9]} 18... Rxb4 {[%clk 0:01:40.2]} 19. Bxd5 {[%clk 0:00:55.3]} 19... Rxd4
{[%clk 0:01:19.6]} 20. Bf3 {[%clk 0:00:23.5]} 20... Rc4 {[%clk 0:01:09.8]} 21.
Qb3 {[%clk 0:00:17.5]} 21... Rb8 {[%clk 0:01:07.2]} 22. Qe3 {[%clk 0:00:15.1]}
22... Rc2 {[%clk 0:00:50.6]} 23. Rec1 {[%clk 0:00:13.7]} 23... Rbb2 {[%clk
0:00:49.7]} 24. Rxc2 {[%clk 0:00:13.7]} 24... Rxc2 {[%clk 0:00:50.6]} 25. Rc1
{[%clk 0:00:12.4]} 25... Rxc1+ {[%clk 0:00:47.4]} 26. Qxc1 {[%clk 0:00:11.6]}
26... c5 {[%clk 0:00:48.3]} 27. Qc3 {[%clk 0:00:11.3]} 27... c4 {[%clk
0:00:47.2]} 28. Bd5 {[%clk 0:00:10.3]} 28... Qc5 {[%clk 0:00:45.6]} 29. e4
{[%clk 0:00:10.2]} 29... Bb5 {[%clk 0:00:31.2]} 30. Kg2 {[%clk 0:00:06.2]} 30...
h5 {[%clk 0:00:22.5]} 31. h4 {[%clk 0:00:05.1]} 31... a6 {[%clk 0:00:20.3]} 32.
Qf6 {[%clk 0:00:04.8]} 32... Qc7 {[%clk 0:00:13.6]} 33. Qxg6+ {[%clk 0:00:04.3]}
33... Kf8 {[%clk 0:00:14.1]} 34. Qh6+ {[%clk 0:00:02.6]} 34... Ke7 {[%clk
0:00:14.6]} 35. Qg5+ {[%clk 0:00:02]} 35... Kd7 {[%clk 0:00:10.6]} 36. Qf5+
{[%clk 0:00:01.1]} 36... Kd6 {[%clk 0:00:09.7]} 0-1

[Event "*** Titled Tuesday Blitz"]
[Site "Chess.com"]
[Date "2021.03.30"]
[Round "5"]
[White "iamnotIM"]
[Black "ErikRonka"]
[Result "1/2-1/2"]
[WhiteElo "2579"]
[BlackElo "2406"]
[TimeControl "180+1"]
[EndTime "10:55:43 PDT"]
[Termination "Game drawn by repetition"]

1. c4 {[%clk 0:02:58.2]} 1... c6 {[%clk 0:02:59.2]} 2. Nf3 {[%clk 0:02:58.2]}
2... d5 {[%clk 0:03:00.1]} 3. g3 {[%clk 0:02:58.6]} 3... Nf6 {[%clk 0:03:00.5]}
4. Bg2 {[%clk 0:02:59]} 4... Bg4 {[%clk 0:03:01.1]} 5. Ne5 {[%clk 0:02:57.2]}
5... Be6 {[%clk 0:03:01.5]} 6. cxd5 {[%clk 0:02:56.7]} 6... Bxd5 {[%clk
0:03:02.4]} 7. Nf3 {[%clk 0:02:57]} 7... c5 {[%clk 0:03:03]} 8. Nc3 {[%clk
0:02:57.3]} 8... Bc6 {[%clk 0:03:03.2]} 9. O-O {[%clk 0:02:57.8]} 9... e6 {[%clk
0:03:03.8]} 10. d3 {[%clk 0:02:58.2]} 10... Be7 {[%clk 0:03:01.6]} 11. b3 {[%clk
0:02:54.7]} 11... O-O {[%clk 0:03:00.8]} 12. Bb2 {[%clk 0:02:54.9]} 12... Nbd7
{[%clk 0:02:52.3]} 13. a3 {[%clk 0:02:53.6]} 13... Rc8 {[%clk 0:02:52.2]} 14.
Rc1 {[%clk 0:02:52.7]} 14... b6 {[%clk 0:02:37.8]} 15. Re1 {[%clk 0:02:51.1]}
15... Qc7 {[%clk 0:02:32.3]} 16. Qc2 {[%clk 0:02:49.4]} 16... Qb7 {[%clk
0:02:29.5]} 17. e4 {[%clk 0:02:42.3]} 17... Rfd8 {[%clk 0:02:28.8]} 18. Qb1
{[%clk 0:02:37.3]} 18... Ng4 {[%clk 0:02:19.7]} 19. Ne2 {[%clk 0:01:54.8]} 19...
Bf6 {[%clk 0:02:13.3]} 20. Qa1 {[%clk 0:01:52.3]} 20... Bxb2 {[%clk 0:02:11.6]}
21. Qxb2 {[%clk 0:01:53.2]} 21... Qb8 {[%clk 0:01:58]} 22. d4 {[%clk 0:01:25.8]}
22... Bxe4 {[%clk 0:01:51.4]} 23. h3 {[%clk 0:01:20.7]} 23... Ngf6 {[%clk
0:01:47.1]} 24. Nf4 {[%clk 0:01:08.8]} 24... Qb7 {[%clk 0:01:39.6]} 25. Ne5
{[%clk 0:00:41.5]} 25... Bxg2 {[%clk 0:01:33.1]} 26. Nxg2 {[%clk 0:00:42.4]}
26... cxd4 {[%clk 0:01:12.9]} 27. Qxd4 {[%clk 0:00:39.6]} 27... Nxe5 {[%clk
0:01:09.2]} 28. Qxe5 {[%clk 0:00:38]} 28... Nd5 {[%clk 0:01:06.4]} 29. h4 {[%clk
0:00:32]} 29... h6 {[%clk 0:01:05.9]} 30. Ne3 {[%clk 0:00:24.2]} 30... Nxe3
{[%clk 0:01:02.5]} 31. Qxe3 {[%clk 0:00:25.1]} 31... Rd5 {[%clk 0:00:52.8]} 32.
Rxc8+ {[%clk 0:00:23.4]} 32... Qxc8 {[%clk 0:00:53.7]} 33. Rc1 {[%clk
0:00:22.6]} 33... Qd7 {[%clk 0:00:52.7]} 34. Qc3 {[%clk 0:00:21]} 34... Rd1+
{[%clk 0:00:50.2]} 35. Rxd1 {[%clk 0:00:20]} 35... Qxd1+ {[%clk 0:00:51.1]} 36.
Kh2 {[%clk 0:00:19.1]} 36... Qd7 {[%clk 0:00:48.7]} 37. a4 {[%clk 0:00:17.8]}
37... g6 {[%clk 0:00:40.8]} 38. Qe5 {[%clk 0:00:16.2]} 38... h5 {[%clk
0:00:35.5]} 39. Qb8+ {[%clk 0:00:14.5]} 39... Kh7 {[%clk 0:00:34.4]} 40. Qf8
{[%clk 0:00:14.8]} 40... Qc7 {[%clk 0:00:28.3]} 41. b4 {[%clk 0:00:13.6]} 41...
a5 {[%clk 0:00:27.2]} 42. bxa5 {[%clk 0:00:12.3]} 42... bxa5 {[%clk 0:00:28.1]}
43. Kg1 {[%clk 0:00:11]} 43... Qd7 {[%clk 0:00:26.3]} 44. Kh2 {[%clk 0:00:11.4]}
44... Qc7 {[%clk 0:00:25.7]} 45. Kg1 {[%clk 0:00:11.6]} 45... Qd7 {[%clk
0:00:23.9]} 46. Kh2 {[%clk 0:00:12.1]} 46... Qc7 {[%clk 0:00:23.3]} 1/2-1/2

[Event "*** Titled Tuesday Blitz"]
[Site "Chess.com"]
[Date "2021.03.30"]
[Round "5"]
[White "Rytenko_V"]
[Black "Ranindu2003"]
[Result "0-1"]
[WhiteElo "2407"]
[BlackElo "2599"]
[TimeControl "180+1"]
[EndTime "10:55:44 PDT"]
[Termination "Ranindu2003 won on time"]

1. d4 {[%clk 0:03:00.9]} 1... Nf6 {[%clk 0:02:59.4]} 2. c4 {[%clk 0:03:00.7]}
2... e6 {[%clk 0:02:59.5]} 3. Nc3 {[%clk 0:03:01]} 3... Bb4 {[%clk 0:03:00.1]}
4. Bd2 {[%clk 0:03:01.4]} 4... O-O {[%clk 0:02:59.8]} 5. Nf3 {[%clk 0:03:01.5]}
5... c5 {[%clk 0:03:00]} 6. e3 {[%clk 0:03:01.6]} 6... b6 {[%clk 0:02:58.2]} 7.
a3 {[%clk 0:02:59.8]} 7... Bxc3 {[%clk 0:02:55.8]} 8. Bxc3 {[%clk 0:03:00.7]}
8... Bb7 {[%clk 0:02:56.3]} 9. g3 {[%clk 0:02:59.6]} 9... Ne4 {[%clk 0:02:48.5]}
10. Bg2 {[%clk 0:02:55.7]} 10... Nxc3 {[%clk 0:02:44.3]} 11. bxc3 {[%clk
0:02:56.6]} 11... Nc6 {[%clk 0:02:39.8]} 12. O-O {[%clk 0:02:37.6]} 12... Na5
{[%clk 0:02:37.5]} 13. Nd2 {[%clk 0:02:32.5]} 13... Bxg2 {[%clk 0:02:30.3]} 14.
Kxg2 {[%clk 0:02:33.4]} 14... Rc8 {[%clk 0:02:30]} 15. Rc1 {[%clk 0:02:32.1]}
15... Qe7 {[%clk 0:02:22.1]} 16. d5 {[%clk 0:02:19.4]} 16... f5 {[%clk
0:02:11.4]} 17. Qe2 {[%clk 0:01:59.1]} 17... e5 {[%clk 0:02:03.1]} 18. e4 {[%clk
0:01:55.8]} 18... f4 {[%clk 0:01:57.5]} 19. f3 {[%clk 0:01:54.9]} 19... d6
{[%clk 0:01:54.1]} 20. Rb1 {[%clk 0:01:49.7]} 20... h5 {[%clk 0:01:38.6]} 21.
Nb3 {[%clk 0:01:44.3]} 21... Nb7 {[%clk 0:01:38.1]} 22. a4 {[%clk 0:01:37.6]}
22... Rf6 {[%clk 0:01:35.7]} 23. a5 {[%clk 0:01:26.4]} 23... bxa5 {[%clk
0:01:32.8]} 24. Ra1 {[%clk 0:01:25.6]} 24... Rcf8 {[%clk 0:01:24.2]} 25. Nxa5
{[%clk 0:01:19.9]} 25... Nxa5 {[%clk 0:01:23.8]} 26. Rxa5 {[%clk 0:01:20.6]}
26... fxg3 {[%clk 0:01:11.7]} 27. hxg3 {[%clk 0:01:21.5]} 27... Rg6 {[%clk
0:01:12.2]} 28. Rh1 {[%clk 0:00:48.3]} 28... Qg5 {[%clk 0:00:51.4]} 29. Qf2
{[%clk 0:00:48]} 29... Rf7 {[%clk 0:00:51.8]} 30. Ra6 {[%clk 0:00:40.7]} 30...
Rgf6 {[%clk 0:00:49.3]} 31. Rh4 {[%clk 0:00:18.9]} 31... Rf4 {[%clk 0:00:30.3]}
32. Rxf4 {[%clk 0:00:10.1]} 32... exf4 {[%clk 0:00:31.2]} 33. Rxd6 {[%clk
0:00:08.7]} 33... Qe5 {[%clk 0:00:26.8]} 34. Re6 {[%clk 0:00:05.5]} 34... Qxc3
{[%clk 0:00:23.6]} 35. Qxc5 {[%clk 0:00:05.6]} 35... fxg3 {[%clk 0:00:20.6]} 36.
Qc8+ {[%clk 0:00:03.5]} 36... Kh7 {[%clk 0:00:20.5]} 37. Re8 {[%clk 0:00:02.7]}
37... Qxf3+ {[%clk 0:00:20.3]} 38. Kh3 {[%clk 0:00:01.5]} 38... g2+ {[%clk
0:00:20.2]} 39. Kh4 {[%clk 0:00:01.1]} 39... Rf4+ {[%clk 0:00:17]} 0-1

[Event "*** Titled Tuesday Blitz"]
[Site "Chess.com"]
[Date "2021.03.30"]
[Round "5"]
[White "Eternauta2400"]
[Black "korbul"]
[Result "0-1"]
[WhiteElo "2378"]
[BlackElo "2581"]
[TimeControl "180+1"]
[EndTime "10:55:44 PDT"]
[Termination "korbul won on time"]

1. e4 {[%clk 0:03:00.9]} 1... c5 {[%clk 0:02:59.4]} 2. Nf3 {[%clk 0:03:00]} 2...
e6 {[%clk 0:02:59.5]} 3. d4 {[%clk 0:02:56.1]} 3... cxd4 {[%clk 0:02:59.2]} 4.
Nxd4 {[%clk 0:02:55.2]} 4... Nf6 {[%clk 0:02:59.6]} 5. Nc3 {[%clk 0:02:54.3]}
5... d6 {[%clk 0:02:59.5]} 6. Bc4 {[%clk 0:02:51.6]} 6... Be7 {[%clk 0:02:58.4]}
7. O-O {[%clk 0:02:48.6]} 7... O-O {[%clk 0:02:58.2]} 8. a4 {[%clk 0:02:47.1]}
8... Nc6 {[%clk 0:02:53.1]} 9. Be3 {[%clk 0:02:43.5]} 9... Bd7 {[%clk 0:02:49]}
10. f4 {[%clk 0:02:41]} 10... Nxd4 {[%clk 0:02:43]} 11. Bxd4 {[%clk 0:02:39.2]}
11... Bc6 {[%clk 0:02:42.5]} 12. Qe2 {[%clk 0:02:27.6]} 12... Qa5 {[%clk
0:02:18.8]} 13. f5 {[%clk 0:02:26.5]} 13... e5 {[%clk 0:02:12]} 14. Bf2 {[%clk
0:02:24]} 14... Qb4 {[%clk 0:02:11.5]} 15. Ra3 {[%clk 0:02:05.8]} 15... Nxe4
{[%clk 0:01:24.6]} 16. Nxe4 {[%clk 0:01:39.9]} 16... d5 {[%clk 0:01:24.1]} 17.
f6 {[%clk 0:01:40.1]} 17... gxf6 {[%clk 0:01:22.2]} 18. Nd2 {[%clk 0:00:34.2]}
18... dxc4 {[%clk 0:01:05.4]} 19. Rh3 {[%clk 0:00:32]} 19... Rfd8 {[%clk
0:00:53.7]} 20. Qg4+ {[%clk 0:00:30.1]} 20... Kf8 {[%clk 0:00:51.1]} 21. Rxh7
{[%clk 0:00:29.7]} 21... Ke8 {[%clk 0:00:51.2]} 22. c3 {[%clk 0:00:14.6]} 22...
Qd6 {[%clk 0:00:39.8]} 23. Nxc4 {[%clk 0:00:14.2]} 23... Qe6 {[%clk 0:00:39.3]}
24. Rh8+ {[%clk 0:00:13.4]} 24... Bf8 {[%clk 0:00:26.7]} 25. Qh4 {[%clk
0:00:11.6]} 25... Kd7 {[%clk 0:00:22.5]} 26. Ne3 {[%clk 0:00:10.4]} 26... Kc7
{[%clk 0:00:18.5]} 27. Rh7 {[%clk 0:00:10.4]} 27... Be7 {[%clk 0:00:17.9]} 28.
Qh5 {[%clk 0:00:10.1]} 28... Rf8 {[%clk 0:00:17.8]} 29. Bg3 {[%clk 0:00:09.2]}
29... Rad8 {[%clk 0:00:16.5]} 30. Nf5 {[%clk 0:00:08.9]} 30... Bc5+ {[%clk
0:00:16.3]} 31. Kh1 {[%clk 0:00:08.6]} 31... Qd5 {[%clk 0:00:16.8]} 32. Nh4
{[%clk 0:00:06.6]} 32... Rd7 {[%clk 0:00:14.6]} 33. Qf5 {[%clk 0:00:04.8]} 33...
Rg8 {[%clk 0:00:13.9]} 34. Qxf6 {[%clk 0:00:04.1]} 34... Qd3 {[%clk 0:00:12.3]}
35. Bxe5+ {[%clk 0:00:03.7]} 35... Kb6 {[%clk 0:00:11.9]} 36. Rxf7 {[%clk
0:00:03.9]} 36... Qe4 {[%clk 0:00:08.9]} 37. Qf3 {[%clk 0:00:01.1]} 37... Qxh4
{[%clk 0:00:07.7]} 0-1

[Event "*** Titled Tuesday Blitz"]
[Site "Chess.com"]
[Date "2021.03.30"]
[Round "5"]
[White "Make_it_shine060"]
[Black "pfalcon1949"]
[Result "0-1"]
[WhiteElo "2198"]
[BlackElo "1997"]
[TimeControl "180+1"]
[EndTime "10:55:44 PDT"]
[Termination "pfalcon1949 won by resignation"]

1. d4 {[%clk 0:03:00.4]} 1... Nf6 {[%clk 0:02:59.3]} 2. c4 {[%clk 0:03:00]} 2...
e6 {[%clk 0:02:58.7]} 3. Nf3 {[%clk 0:02:54.8]} 3... Bb4+ {[%clk 0:02:58]} 4.
Nbd2 {[%clk 0:02:52.5]} 4... b6 {[%clk 0:02:55.9]} 5. a3 {[%clk 0:02:50.5]} 5...
Bxd2+ {[%clk 0:02:55.2]} 6. Bxd2 {[%clk 0:02:45.9]} 6... Bb7 {[%clk 0:02:56.1]}
7. g3 {[%clk 0:02:42.8]} 7... Ne4 {[%clk 0:02:55.1]} 8. Be3 {[%clk 0:02:36.8]}
8... f5 {[%clk 0:02:51.4]} 9. Bg2 {[%clk 0:02:35.2]} 9... O-O {[%clk 0:02:51.9]}
10. O-O {[%clk 0:02:34.8]} 10... d6 {[%clk 0:02:50.8]} 11. Qd3 {[%clk 0:02:27]}
11... Nd7 {[%clk 0:02:46.8]} 12. b4 {[%clk 0:02:23.9]} 12... Ndf6 {[%clk
0:02:45.9]} 13. Ng5 {[%clk 0:02:10.1]} 13... Qe7 {[%clk 0:02:39.2]} 14. Nxe4
{[%clk 0:02:06.2]} 14... Bxe4 {[%clk 0:02:37.4]} 15. Bxe4 {[%clk 0:01:44.9]}
15... fxe4 {[%clk 0:02:36.5]} 16. Qd2 {[%clk 0:01:40.3]} 16... d5 {[%clk
0:02:36.2]} 17. c5 {[%clk 0:01:37.8]} 17... b5 {[%clk 0:02:31.7]} 18. f3 {[%clk
0:01:27.6]} 18... c6 {[%clk 0:02:29]} 19. fxe4 {[%clk 0:01:22.5]} 19... Nxe4
{[%clk 0:02:26.8]} 20. Qd3 {[%clk 0:01:21.6]} 20... Rxf1+ {[%clk 0:02:23.3]} 21.
Rxf1 {[%clk 0:01:22.5]} 21... Rf8 {[%clk 0:02:23.2]} 22. Rxf8+ {[%clk
0:01:11.7]} 22... Qxf8 {[%clk 0:02:23]} 23. Kg2 {[%clk 0:01:09.9]} 23... Qf5
{[%clk 0:02:21]} 24. h4 {[%clk 0:00:56.3]} 24... h6 {[%clk 0:02:12.7]} 25. a4
{[%clk 0:00:45.9]} 25... a6 {[%clk 0:02:10]} 26. axb5 {[%clk 0:00:43.8]} 26...
axb5 {[%clk 0:02:09.1]} 27. Qb1 {[%clk 0:00:39.2]} 27... Qg4 {[%clk 0:02:01.7]}
28. Qe1 {[%clk 0:00:33.2]} 28... Kh7 {[%clk 0:01:49.5]} 29. Kh2 {[%clk
0:00:29.7]} 29... g5 {[%clk 0:01:47.1]} 30. hxg5 {[%clk 0:00:28.2]} 30... hxg5
{[%clk 0:01:46.7]} 31. Kg2 {[%clk 0:00:27]} 31... Qh5 {[%clk 0:01:41.2]} 32. Bf2
{[%clk 0:00:11.8]} 32... g4 {[%clk 0:01:29.9]} 33. e3 {[%clk 0:00:10.3]} 33...
Qh3+ {[%clk 0:01:28.4]} 34. Kg1 {[%clk 0:00:09.6]} 34... Qh6 {[%clk 0:01:19.8]}
35. Qf1 {[%clk 0:00:07.3]} 35... Nd2 {[%clk 0:01:17.4]} 36. Qd1 {[%clk
0:00:02.6]} 36... Nf3+ {[%clk 0:01:18.3]} 37. Kf1 {[%clk 0:00:02.2]} 37... Qh3+
{[%clk 0:01:08.9]} 38. Ke2 {[%clk 0:00:03.1]} 38... Qh6 {[%clk 0:01:04.6]} 39.
Qd3+ {[%clk 0:00:03.1]} 39... Qg6 {[%clk 0:01:04.3]} 40. Qd1 {[%clk 0:00:04]}
40... Qe4 {[%clk 0:01:03.8]} 41. Qh1+ {[%clk 0:00:03.4]} 41... Kg6 {[%clk
0:01:00.8]} 42. Qd1 {[%clk 0:00:04.3]} 42... Kf5 {[%clk 0:00:59.9]} 43. Qd3
{[%clk 0:00:03.4]} 43... Qxd3+ {[%clk 0:00:56.6]} 44. Kxd3 {[%clk 0:00:04]}
44... Ng5 {[%clk 0:00:56.1]} 45. Ke2 {[%clk 0:00:03.7]} 45... Ke4 {[%clk
0:00:55]} 46. Bg1 {[%clk 0:00:03.5]} 46... Nf7 {[%clk 0:00:55.2]} 47. Bf2 {[%clk
0:00:03.2]} 47... e5 {[%clk 0:00:55.6]} 48. Bg1 {[%clk 0:00:02.3]} 48... Ng5
{[%clk 0:00:55.3]} 49. Bf2 {[%clk 0:00:03.2]} 49... Nf3 {[%clk 0:00:55.3]} 50.
Bg1 {[%clk 0:00:03]} 50... exd4 {[%clk 0:00:54.8]} 51. Kf2 {[%clk 0:00:03.8]}
51... dxe3+ {[%clk 0:00:54.1]} 52. Ke2 {[%clk 0:00:03.9]} 52... Nxg1+ {[%clk
0:00:51.4]} 0-1

[Event "*** Titled Tuesday Blitz"]
[Site "Chess.com"]
[Date "2021.03.30"]
[Round "5"]
[White "Iskusnyh"]
[Black "CrushingKings"]
[Result "1-0"]
[WhiteElo "2630"]
[BlackElo "2454"]
[TimeControl "180+1"]
[EndTime "10:55:45 PDT"]
[Termination "Iskusnyh won on time"]

1. d4 {[%clk 0:03:00.9]} 1... Nf6 {[%clk 0:02:58]} 2. c4 {[%clk 0:03:01.2]} 2...
e6 {[%clk 0:02:58.2]} 3. g3 {[%clk 0:03:01.6]} 3... c5 {[%clk 0:02:57.2]} 4. Nf3
{[%clk 0:03:00.1]} 4... cxd4 {[%clk 0:02:55.5]} 5. Nxd4 {[%clk 0:02:59.9]} 5...
d5 {[%clk 0:02:56.1]} 6. Bg2 {[%clk 0:02:58.7]} 6... e5 {[%clk 0:02:56.3]} 7.
Nf3 {[%clk 0:02:58.2]} 7... d4 {[%clk 0:02:51.2]} 8. O-O {[%clk 0:02:57.6]} 8...
Nc6 {[%clk 0:02:50.9]} 9. e3 {[%clk 0:02:55.5]} 9... Be7 {[%clk 0:02:51.4]} 10.
exd4 {[%clk 0:02:54.9]} 10... exd4 {[%clk 0:02:52.3]} 11. b4 {[%clk 0:02:51.6]}
11... Nxb4 {[%clk 0:02:12.5]} 12. Nxd4 {[%clk 0:02:47]} 12... O-O {[%clk
0:02:12.5]} 13. Nc3 {[%clk 0:02:34.8]} 13... Bg4 {[%clk 0:02:10]} 14. Nde2
{[%clk 0:02:15.5]} 14... Re8 {[%clk 0:01:36.1]} 15. Qb3 {[%clk 0:01:50.4]} 15...
Qc8 {[%clk 0:01:31.6]} 16. Nf4 {[%clk 0:01:42.1]} 16... Bc5 {[%clk 0:01:25.8]}
17. Ba3 {[%clk 0:01:28.6]} 17... a5 {[%clk 0:01:23.1]} 18. Ncd5 {[%clk 0:01:22]}
18... Nfxd5 {[%clk 0:01:20.5]} 19. cxd5 {[%clk 0:01:21.3]} 19... Qd7 {[%clk
0:01:13]} 20. Rac1 {[%clk 0:01:15.8]} 20... b6 {[%clk 0:01:10.8]} 21. Bb2 {[%clk
0:01:09.9]} 21... f6 {[%clk 0:00:43.1]} 22. a3 {[%clk 0:01:02.7]} 22... a4
{[%clk 0:00:42.5]} 23. Qc4 {[%clk 0:00:54.7]} 23... Na6 {[%clk 0:00:41.5]} 24.
Ne6 {[%clk 0:00:53.3]} 24... Bf5 {[%clk 0:00:31.9]} 25. Rfe1 {[%clk 0:00:30.7]}
25... Ra7 {[%clk 0:00:25.7]} 26. Qf4 {[%clk 0:00:26.7]} 26... Bxe6 {[%clk
0:00:20.4]} 27. dxe6 {[%clk 0:00:26.2]} 27... Rxe6 {[%clk 0:00:21.1]} 28. Qc4
{[%clk 0:00:24.3]} 28... Nc7 {[%clk 0:00:19.4]} 29. Rxe6 {[%clk 0:00:22.2]}
29... Qxe6 {[%clk 0:00:18.7]} 30. Qxe6+ {[%clk 0:00:21.5]} 30... Nxe6 {[%clk
0:00:19.4]} 31. Bd5 {[%clk 0:00:21.8]} 31... Kf7 {[%clk 0:00:19.8]} 32. Re1
{[%clk 0:00:21.8]} 32... Re7 {[%clk 0:00:20.4]} 33. Kg2 {[%clk 0:00:20.7]} 33...
Bd6 {[%clk 0:00:15.4]} 34. f4 {[%clk 0:00:20.1]} 34... g6 {[%clk 0:00:13.7]} 35.
Kf3 {[%clk 0:00:18.3]} 35... h5 {[%clk 0:00:10.5]} 36. h3 {[%clk 0:00:17.8]}
36... Bc7 {[%clk 0:00:09.6]} 37. g4 {[%clk 0:00:17.3]} 37... hxg4+ {[%clk
0:00:06.5]} 38. hxg4 {[%clk 0:00:17.6]} 38... f5 {[%clk 0:00:07.2]} 39. g5
{[%clk 0:00:18]} 39... Re8 {[%clk 0:00:06.2]} 40. Bf6 {[%clk 0:00:17.3]} 40...
Bd6 {[%clk 0:00:06.1]} 41. Rh1 {[%clk 0:00:16.6]} 1-0